{"text_format":"1","workbook":"xlsx","n_sheets":5,"sheets":["Steuerung","Bestand","Artikel","Bedarf","Auftrag"],"not_rendered":{"charts":0,"images":8,"macros":1,"external_links":0,"defined_names":0,"comments":2,"pivot_tables":0},"unopened":[],"bounds":{"document_bytes":16777216,"sheet_cells":100000,"rows_first":2000,"rows_last":500,"rows_between":2000,"halvings":0,"cell_chars":16384,"cell_head_chars":4096},"cells_cut":0,"cells_raw":0,"read":"whole","date_system":"1900"}

{"sheet":"Steuerung","index":0,"n_rows":19,"n_cols":2,"rows_kept":19,"cut":false,"hidden":false,"merged":[[15,5,17,6],[18,1,20,4],[18,5,20,6],[18,7,20,7],[1,1,2,7],[3,1,4,7],[6,1,8,4],[9,1,11,4],[6,5,8,6],[9,5,11,6],[6,7,17,7],[12,1,14,4],[15,1,17,4],[12,5,14,6]]}
[]
[null,"Lagerbestandsverwaltung"]
[]
[null,"Verkaufslager Tropic Partykleid"]
[]
[]
[null,"Kontrollieren Sie die Lagerbestände und berechnen Sie Lagerkennziffern."]
[]
[]
[null,"Erfassen Sie Zu- und Abgängge. "]
[]
[]
[null,"Kontrollieren Sie die Lagerbewegungen."]
[]
[]
[null,"Erstellen Sie Bedarfsmeldungen."]
[]
[]
[null,"Lösen Sie Aufgaben zur Lagerbestandsverwaltung."]

{"sheet":"Bestand","index":1,"n_rows":31,"n_cols":11,"rows_kept":31,"cut":false,"hidden":false,"merged":[[29,8,29,9],[30,8,30,9],[19,10,20,10],[17,0,18,1],[17,8,18,9],[17,10,18,10],[17,2,18,5],[17,6,18,7],[25,8,25,9],[26,8,26,9],[27,8,27,9],[28,8,28,9],[21,8,21,9],[22,8,22,9],[23,8,23,9],[24,8,24,9],[29,6,29,7],[30,6,30,7],[29,4,29,5],[30,4,30,5],[27,4,27,5],[28,4,28,5],[25,6,25,7],[26,6,26,7],[29,2,29,3],[30,2,30,3],[21,4,21,5],[22,4,22,5],[23,4,23,5],[24,4,24,5],[25,4,25,5],[26,4,26,5],[21,6,21,7],[22,6,22,7],[23,6,23,7],[24,6,24,7],[27,6,27,7],[28,6,28,7],[25,2,25,3],[26,2,26,3],[27,2,27,3],[28,2,28,3],[21,2,21,3],[22,2,22,3],[23,2,23,3],[24,2,24,3],[0,0,0,10],[19,0,20,0],[19,1,20,1],[19,2,20,3],[19,8,20,9],[4,0,5,0],[4,1,5,1],[4,3,5,3],[4,4,5,4],[4,2,5,2],[19,4,20,5],[19,6,20,7],[4,9,5,9],[4,10,5,10],[4,5,5,5],[4,6,5,6],[4,7,5,7],[4,8,5,8]]}
["Lagerbestände Tropic Partykleid"]
[]
[]
[]
["Artikel-Nr.:","Artikel-Bezeichnung","Größe","Mengen-einheit","Höchst-bestand","Melde-bestand","Mindest-bestand","Bestand","kritische Mengen","Stückpreis","Bestands-wert"]
[]
[{"$f":"Artikel!A7","v":5011},{"$f":"Artikel!B7","v":"Tropic Partykleid, schwarz"},{"$f":"Artikel!C7","v":34},"Stück",{"$f":"Artikel!D7","v":50},{"$f":"Artikel!E7","v":25},{"$f":"Artikel!F7","v":10},{"$f":"IF(Artikel!$BQ7>0,Artikel!$BQ7,IF(Artikel!$BI7>0,Artikel!$BI7,IF(Artikel!$BA7>0,Artikel!$BA7,IF(Artikel!$AS7>0,Artikel!$AS7,IF(Artikel!$AK7>0,Artikel!$AK7,IF(Artikel!$AC7>0,Artikel!$AC7,IF(Artikel!$U7>0,Artikel!$U7,IF(Artikel!$M7>0,Artikel!$M7,Artikel!$G7))))))))","v":50},{"$f":"IF(B7=0,\"\",IF(H7>=E7,\"HöB\",IF(H7<=G7,\"MiB\",IF(H7<=F7,\"MeB\",\"\"))))","v":"HöB"},{"$f":"Artikel!H7","v":80},{"$f":"H7*J7","v":4000}]
[{"$f":"Artikel!A8","v":5012},{"$f":"Artikel!B8","v":"Tropic Partykleid, schwarz"},{"$f":"Artikel!C8","v":36},"Stück",{"$f":"Artikel!D8","v":100},{"$f":"Artikel!E8","v":50},{"$f":"Artikel!F8","v":10},{"$f":"IF(Artikel!$BQ8>0,Artikel!$BQ8,IF(Artikel!$BI8>0,Artikel!$BI8,IF(Artikel!$BA8>0,Artikel!$BA8,IF(Artikel!$AS8>0,Artikel!$AS8,IF(Artikel!$AK8>0,Artikel!$AK8,IF(Artikel!$AC8>0,Artikel!$AC8,IF(Artikel!$U8>0,Artikel!$U8,IF(Artikel!$M8>0,Artikel!$M8,Artikel!$G8))))))))","v":60},{"$f":"IF(B8=0,\"\",IF(H8>=E8,\"HöB\",IF(H8<=G8,\"MiB\",IF(H8<=F8,\"MeB\",\"\"))))","v":""},{"$f":"Artikel!H8","v":80},{"$f":"H8*J8","v":4800}]
[{"$f":"Artikel!A9","v":5013},{"$f":"Artikel!B9","v":"Tropic Partykleid, schwarz"},{"$f":"Artikel!C9","v":38},"Stück",{"$f":"Artikel!D9","v":100},{"$f":"Artikel!E9","v":50},{"$f":"Artikel!F9","v":10},{"$f":"IF(Artikel!$BQ9>0,Artikel!$BQ9,IF(Artikel!$BI9>0,Artikel!$BI9,IF(Artikel!$BA9>0,Artikel!$BA9,IF(Artikel!$AS9>0,Artikel!$AS9,IF(Artikel!$AK9>0,Artikel!$AK9,IF(Artikel!$AC9>0,Artikel!$AC9,IF(Artikel!$U9>0,Artikel!$U9,IF(Artikel!$M9>0,Artikel!$M9,Artikel!$G9))))))))","v":60},"",{"$f":"Artikel!H9","v":80},{"$f":"H9*J9","v":4800}]
[{"$f":"Artikel!A10","v":5014},{"$f":"Artikel!B10","v":"Tropic Partykleid, schwarz"},{"$f":"Artikel!C10","v":40},"Stück",{"$f":"Artikel!D10","v":100},{"$f":"Artikel!E10","v":50},{"$f":"Artikel!F10","v":10},{"$f":"IF(Artikel!$BQ10>0,Artikel!$BQ10,IF(Artikel!$BI10>0,Artikel!$BI10,IF(Artikel!$BA10>0,Artikel!$BA10,IF(Artikel!$AS10>0,Artikel!$AS10,IF(Artikel!$AK10>0,Artikel!$AK10,IF(Artikel!$AC10>0,Artikel!$AC10,IF(Artikel!$U10>0,Artikel!$U10,IF(Artikel!$M10>0,Artikel!$M10,Artikel!$G10))))))))","v":40},"MeB",{"$f":"Artikel!H10","v":80},3200]
[{"$f":"Artikel!A11","v":5015},{"$f":"Artikel!B11","v":"Tropic Partykleid, schwarz"},{"$f":"Artikel!C11","v":42},"Stück",{"$f":"Artikel!D11","v":50},{"$f":"Artikel!E11","v":25},{"$f":"Artikel!F11","v":10},{"$f":"IF(Artikel!$BQ11>0,Artikel!$BQ11,IF(Artikel!$BI11>0,Artikel!$BI11,IF(Artikel!$BA11>0,Artikel!$BA11,IF(Artikel!$AS11>0,Artikel!$AS11,IF(Artikel!$AK11>0,Artikel!$AK11,IF(Artikel!$AC11>0,Artikel!$AC11,IF(Artikel!$U11>0,Artikel!$U11,IF(Artikel!$M11>0,Artikel!$M11,Artikel!$G11))))))))","v":50},"HöB",{"$f":"Artikel!H11","v":80},4000]
[{"$f":"Artikel!A12","v":5021},{"$f":"Artikel!B12","v":"Tropic Partykleid, grün-orange"},{"$f":"Artikel!C12","v":34},"Stück",{"$f":"Artikel!D12","v":50},{"$f":"Artikel!E12","v":25},{"$f":"Artikel!F12","v":10},{"$f":"IF(Artikel!$BQ12>0,Artikel!$BQ12,IF(Artikel!$BI12>0,Artikel!$BI12,IF(Artikel!$BA12>0,Artikel!$BA12,IF(Artikel!$AS12>0,Artikel!$AS12,IF(Artikel!$AK12>0,Artikel!$AK12,IF(Artikel!$AC12>0,Artikel!$AC12,IF(Artikel!$U12>0,Artikel!$U12,IF(Artikel!$M12>0,Artikel!$M12,Artikel!$G12))))))))","v":30},"",{"$f":"Artikel!H12","v":80},2400]
[{"$f":"Artikel!A13","v":5022},{"$f":"Artikel!B13","v":"Tropic Partykleid, grün-orange"},{"$f":"Artikel!C13","v":36},"Stück",{"$f":"Artikel!D13","v":100},{"$f":"Artikel!E13","v":50},{"$f":"Artikel!F13","v":10},{"$f":"IF(Artikel!$BQ13>0,Artikel!$BQ13,IF(Artikel!$BI13>0,Artikel!$BI13,IF(Artikel!$BA13>0,Artikel!$BA13,IF(Artikel!$AS13>0,Artikel!$AS13,IF(Artikel!$AK13>0,Artikel!$AK13,IF(Artikel!$AC13>0,Artikel!$AC13,IF(Artikel!$U13>0,Artikel!$U13,IF(Artikel!$M13>0,Artikel!$M13,Artikel!$G13))))))))","v":90},"",{"$f":"Artikel!H13","v":80},7200]
[{"$f":"Artikel!A14","v":5023},{"$f":"Artikel!B14","v":"Tropic Partykleid, grün-orange"},{"$f":"Artikel!C14","v":38},"Stück",{"$f":"Artikel!D14","v":100},{"$f":"Artikel!E14","v":50},{"$f":"Artikel!F14","v":10},{"$f":"IF(Artikel!$BQ14>0,Artikel!$BQ14,IF(Artikel!$BI14>0,Artikel!$BI14,IF(Artikel!$BA14>0,Artikel!$BA14,IF(Artikel!$AS14>0,Artikel!$AS14,IF(Artikel!$AK14>0,Artikel!$AK14,IF(Artikel!$AC14>0,Artikel!$AC14,IF(Artikel!$U14>0,Artikel!$U14,IF(Artikel!$M14>0,Artikel!$M14,Artikel!$G14))))))))","v":75},"",{"$f":"Artikel!H14","v":80},6000]
[{"$f":"Artikel!A15","v":5024},{"$f":"Artikel!B15","v":"Tropic Partykleid, grün-orange"},{"$f":"Artikel!C15","v":40},"Stück",{"$f":"Artikel!D15","v":100},{"$f":"Artikel!E15","v":50},{"$f":"Artikel!F15","v":10},{"$f":"IF(Artikel!$BQ15>0,Artikel!$BQ15,IF(Artikel!$BI15>0,Artikel!$BI15,IF(Artikel!$BA15>0,Artikel!$BA15,IF(Artikel!$AS15>0,Artikel!$AS15,IF(Artikel!$AK15>0,Artikel!$AK15,IF(Artikel!$AC15>0,Artikel!$AC15,IF(Artikel!$U15>0,Artikel!$U15,IF(Artikel!$M15>0,Artikel!$M15,Artikel!$G15))))))))","v":60},"",{"$f":"Artikel!H15","v":80},4800]
[{"$f":"Artikel!A16","v":5025},{"$f":"Artikel!B16","v":"Tropic Partykleid, grün-orange"},{"$f":"Artikel!C16","v":42},"Stück",{"$f":"Artikel!D16","v":50},{"$f":"Artikel!E16","v":25},{"$f":"Artikel!F16","v":10},{"$f":"IF(Artikel!$BQ16>0,Artikel!$BQ16,IF(Artikel!$BI16>0,Artikel!$BI16,IF(Artikel!$BA16>0,Artikel!$BA16,IF(Artikel!$AS16>0,Artikel!$AS16,IF(Artikel!$AK16>0,Artikel!$AK16,IF(Artikel!$AC16>0,Artikel!$AC16,IF(Artikel!$U16>0,Artikel!$U16,IF(Artikel!$M16>0,Artikel!$M16,Artikel!$G16))))))))","v":45},"",{"$f":"Artikel!H16","v":80},{"$f":"H16*J16","v":3600}]
[]
["Lagerkennziffern",null,"Die Kennziffern beziehen sich jeweils auf die aktuellen Bestands- bzw Verbauchs-mengen das jeweiligen Kleides.",null,null,null,null,null,"Kalkulationszinssatz",null,0.02]
[]
["Artikel-Nr.:","Artikel-Bezeichnung","durchschnittlicher Lagerbestand",null,"Verkauf",null,"Umschlagshäufigkeit",null,"durchschnittliche Lagerdauer",null,"Lager- zinssatz"]
[]
[{"$f":"Artikel!A7","v":5011},{"$f":"CONCATENATE(Artikel!B7,\" \",Artikel!C7)","v":"Tropic Partykleid, schwarz 34"},{"$f":"(Artikel!G7+Bestand!H7)/2","v":45},null,{"$f":"Artikel!G7+IF(Artikel!J7=\"Zugang\",Artikel!L7,0)+IF(Artikel!R7=\"Zugang\",Artikel!T7,0)+IF(Artikel!Z7=\"Zugang\",Artikel!AB7,0)+IF(Artikel!AH7=\"Zugang\",Artikel!AJ7,0)+IF(Artikel!AP7=\"Zugang\",Artikel!AR7,0)+IF(Artikel!AX7=\"Zugang\",Artikel!AZ7,0)+IF(Artikel!BF7=\"Zugagn\",Artikel!BH7,0)+IF(Artikel!BN7=\"Zugang\",Artikel!BP7,0)-Bestand!H7","v":20},null,{"$f":"IF(AND(C22>0,E22>0),C22/E22,0)","v":2.25},null,{"$f":"IF(G22>0,360/G22,360)","v":160},null,{"$f":"(I22*$K$18)/360","v":8.8888888888888889E-3}]
[{"$f":"Artikel!A8","v":5012},{"$f":"CONCATENATE(Artikel!B8,\" \",Artikel!C8)","v":"Tropic Partykleid, schwarz 36"},{"$f":"(Artikel!G8+Bestand!H8)/2","v":67.5},null,{"$f":"Artikel!G8+IF(Artikel!J8=\"Zugang\",Artikel!L8,0)+IF(Artikel!R8=\"Zugang\",Artikel!T8,0)+IF(Artikel!Z8=\"Zugang\",Artikel!AB8,0)+IF(Artikel!AH8=\"Zugang\",Artikel!AJ8,0)+IF(Artikel!AP8=\"Zugang\",Artikel!AR8,0)+IF(Artikel!AX8=\"Zugang\",Artikel!AZ8,0)+IF(Artikel!BF8=\"Zugagn\",Artikel!BH8,0)+IF(Artikel!BN8=\"Zugang\",Artikel!BP8,0)-Bestand!H8","v":15},null,{"$f":"IF(AND(C23>0,E23>0),C23/E23,0)","v":4.5},null,{"$f":"IF(G23>0,360/G23,360)","v":80},null,{"$f":"(I23*$K$18)/360","v":4.4444444444444444E-3}]
[{"$f":"Artikel!A9","v":5013},{"$f":"CONCATENATE(Artikel!B9,\" \",Artikel!C9)","v":"Tropic Partykleid, schwarz 38"},{"$f":"(Artikel!G9+Bestand!H9)/2","v":80},null,{"$f":"Artikel!G9+IF(Artikel!J9=\"Zugang\",Artikel!L9,0)+IF(Artikel!R9=\"Zugang\",Artikel!T9,0)+IF(Artikel!Z9=\"Zugang\",Artikel!AB9,0)+IF(Artikel!AH9=\"Zugang\",Artikel!AJ9,0)+IF(Artikel!AP9=\"Zugang\",Artikel!AR9,0)+IF(Artikel!AX9=\"Zugang\",Artikel!AZ9,0)+IF(Artikel!BF9=\"Zugagn\",Artikel!BH9,0)+IF(Artikel!BN9=\"Zugang\",Artikel!BP9,0)-Bestand!H9","v":40},null,2,null,180,null,0.01]
[{"$f":"Artikel!A10","v":5014},{"$f":"CONCATENATE(Artikel!B10,\" \",Artikel!C10)","v":"Tropic Partykleid, schwarz 40"},{"$f":"(Artikel!G10+Bestand!H10)/2","v":50},null,{"$f":"Artikel!G10+IF(Artikel!J10=\"Zugang\",Artikel!L10,0)+IF(Artikel!R10=\"Zugang\",Artikel!T10,0)+IF(Artikel!Z10=\"Zugang\",Artikel!AB10,0)+IF(Artikel!AH10=\"Zugang\",Artikel!AJ10,0)+IF(Artikel!AP10=\"Zugang\",Artikel!AR10,0)+IF(Artikel!AX10=\"Zugang\",Artikel!AZ10,0)+IF(Artikel!BF10=\"Zugagn\",Artikel!BH10,0)+IF(Artikel!BN10=\"Zugang\",Artikel!BP10,0)-Bestand!H10","v":20},null,2.5,null,144,null,8.0000000000000002E-3]
[{"$f":"Artikel!A11","v":5015},{"$f":"CONCATENATE(Artikel!B11,\" \",Artikel!C11)","v":"Tropic Partykleid, schwarz 42"},{"$f":"(Artikel!G11+Bestand!H11)/2","v":35},null,{"$f":"Artikel!G11+IF(Artikel!J11=\"Zugang\",Artikel!L11,0)+IF(Artikel!R11=\"Zugang\",Artikel!T11,0)+IF(Artikel!Z11=\"Zugang\",Artikel!AB11,0)+IF(Artikel!AH11=\"Zugang\",Artikel!AJ11,0)+IF(Artikel!AP11=\"Zugang\",Artikel!AR11,0)+IF(Artikel!AX11=\"Zugang\",Artikel!AZ11,0)+IF(Artikel!BF11=\"Zugagn\",Artikel!BH11,0)+IF(Artikel!BN11=\"Zugang\",Artikel!BP11,0)-Bestand!H11","v":0},null,0,null,360,null,0.02]
[{"$f":"Artikel!A12","v":5021},{"$f":"CONCATENATE(Artikel!B12,\" \",Artikel!C12)","v":"Tropic Partykleid, grün-orange 34"},{"$f":"(Artikel!G12+Bestand!H12)/2","v":40},null,{"$f":"Artikel!G12+IF(Artikel!J12=\"Zugang\",Artikel!L12,0)+IF(Artikel!R12=\"Zugang\",Artikel!T12,0)+IF(Artikel!Z12=\"Zugang\",Artikel!AB12,0)+IF(Artikel!AH12=\"Zugang\",Artikel!AJ12,0)+IF(Artikel!AP12=\"Zugang\",Artikel!AR12,0)+IF(Artikel!AX12=\"Zugang\",Artikel!AZ12,0)+IF(Artikel!BF12=\"Zugagn\",Artikel!BH12,0)+IF(Artikel!BN12=\"Zugang\",Artikel!BP12,0)-Bestand!H12","v":20},null,2,null,180,null,0.01]
[{"$f":"Artikel!A13","v":5022},{"$f":"CONCATENATE(Artikel!B13,\" \",Artikel!C13)","v":"Tropic Partykleid, grün-orange 36"},{"$f":"(Artikel!G13+Bestand!H13)/2","v":80},null,{"$f":"Artikel!G13+IF(Artikel!J13=\"Zugang\",Artikel!L13,0)+IF(Artikel!R13=\"Zugang\",Artikel!T13,0)+IF(Artikel!Z13=\"Zugang\",Artikel!AB13,0)+IF(Artikel!AH13=\"Zugang\",Artikel!AJ13,0)+IF(Artikel!AP13=\"Zugang\",Artikel!AR13,0)+IF(Artikel!AX13=\"Zugang\",Artikel!AZ13,0)+IF(Artikel!BF13=\"Zugagn\",Artikel!BH13,0)+IF(Artikel!BN13=\"Zugang\",Artikel!BP13,0)-Bestand!H13","v":20},null,4,null,90,null,5.0000000000000001E-3]
[{"$f":"Artikel!A14","v":5023},{"$f":"CONCATENATE(Artikel!B14,\" \",Artikel!C14)","v":"Tropic Partykleid, grün-orange 38"},{"$f":"(Artikel!G14+Bestand!H14)/2","v":87.5},null,{"$f":"Artikel!G14+IF(Artikel!J14=\"Zugang\",Artikel!L14,0)+IF(Artikel!R14=\"Zugang\",Artikel!T14,0)+IF(Artikel!Z14=\"Zugang\",Artikel!AB14,0)+IF(Artikel!AH14=\"Zugang\",Artikel!AJ14,0)+IF(Artikel!AP14=\"Zugang\",Artikel!AR14,0)+IF(Artikel!AX14=\"Zugang\",Artikel!AZ14,0)+IF(Artikel!BF14=\"Zugagn\",Artikel!BH14,0)+IF(Artikel!BN14=\"Zugang\",Artikel!BP14,0)-Bestand!H14","v":25},null,3.5,null,102.85714285714286,null,5.7142857142857151E-3]
[{"$f":"Artikel!A15","v":5024},{"$f":"CONCATENATE(Artikel!B15,\" \",Artikel!C15)","v":"Tropic Partykleid, grün-orange 40"},{"$f":"(Artikel!G15+Bestand!H15)/2","v":55},null,{"$f":"Artikel!G15+IF(Artikel!J15=\"Zugang\",Artikel!L15,0)+IF(Artikel!R15=\"Zugang\",Artikel!T15,0)+IF(Artikel!Z15=\"Zugang\",Artikel!AB15,0)+IF(Artikel!AH15=\"Zugang\",Artikel!AJ15,0)+IF(Artikel!AP15=\"Zugang\",Artikel!AR15,0)+IF(Artikel!AX15=\"Zugang\",Artikel!AZ15,0)+IF(Artikel!BF15=\"Zugagn\",Artikel!BH15,0)+IF(Artikel!BN15=\"Zugang\",Artikel!BP15,0)-Bestand!H15","v":40},null,1.375,null,261.81818181818181,null,1.4545454545454545E-2]
[{"$f":"Artikel!A16","v":5025},{"$f":"CONCATENATE(Artikel!B16,\" \",Artikel!C16)","v":"Tropic Partykleid, grün-orange 42"},{"$f":"(Artikel!G16+Bestand!H16)/2","v":37.5},null,{"$f":"Artikel!G16+IF(Artikel!J16=\"Zugang\",Artikel!L16,0)+IF(Artikel!R16=\"Zugang\",Artikel!T16,0)+IF(Artikel!Z16=\"Zugang\",Artikel!AB16,0)+IF(Artikel!AH16=\"Zugang\",Artikel!AJ16,0)+IF(Artikel!AP16=\"Zugang\",Artikel!AR16,0)+IF(Artikel!AX16=\"Zugang\",Artikel!AZ16,0)+IF(Artikel!BF16=\"Zugagn\",Artikel!BH16,0)+IF(Artikel!BN16=\"Zugang\",Artikel!BP16,0)-Bestand!H16","v":10},null,3.75,null,96,null,5.3333333333333332E-3]

{"sheet":"Artikel","index":2,"n_rows":16,"n_cols":72,"rows_kept":16,"cut":false,"hidden":false,"merged":[[4,5,5,5],[4,0,5,0],[4,1,5,1],[4,2,5,2],[4,3,5,3],[4,4,5,4],[4,17,5,17],[4,6,5,6],[4,7,5,7],[4,8,5,8],[4,9,5,9],[4,10,5,10],[4,11,5,11],[4,12,5,12],[4,13,5,13],[4,14,5,14],[4,15,5,15],[4,16,5,16],[4,29,5,29],[4,18,5,18],[4,19,5,19],[4,20,5,20],[4,21,5,21],[4,22,5,22],[4,23,5,23],[4,24,5,24],[4,25,5,25],[4,26,5,26],[4,27,5,27],[4,28,5,28],[4,41,5,41],[4,30,5,30],[4,31,5,31],[4,32,5,32],[4,33,5,33],[4,34,5,34],[4,35,5,35],[4,36,5,36],[4,37,5,37],[4,38,5,38],[4,39,5,39],[4,40,5,40],[4,43,5,43],[4,44,5,44],[4,45,5,45],[4,46,5,46],[4,47,5,47],[0,0,1,2],[4,68,5,68],[4,69,5,69],[4,70,5,70],[4,60,5,60],[4,48,5,48],[4,49,5,49],[4,50,5,50],[4,51,5,51],[4,58,5,58],[4,59,5,59],[4,52,5,52],[4,53,5,53],[4,54,5,54],[4,55,5,55],[4,42,5,42],[4,71,5,71],[4,64,5,64],[4,65,5,65],[4,66,5,66],[4,67,5,67],[4,61,5,61],[4,62,5,62],[4,63,5,63],[4,56,5,56],[4,57,5,57]]}
["Lagerbestand Tropic Partykleid"]
[]
[]
[]
["Artikel-Nr.:","Artikel-Bezeichnung","Größen","Höchst-bestand","Melde-bestand","Mindest-bestand","Anfangs-bestand","Stückpreis","Datum       1","Zugang/ Abgang","Stück-preis","Menge","Bestand","kritische Mengen","Durch-schnittswert","Bestands-wert","Datum        2","Zugang/ Abgang","Stück-preis","Menge","Bestand","kritische Mengen","Durch-schnittswert","Bestands-wert","Datum       3","Zugang/ Abgang","Stück-preis","Menge","Bestand","kritische Mengen","Durch-schnittswert","Bestands-wert","Datum        4","Zugang/ Abgang","Stück-preis","Menge","Bestand","kritische Mengen","Durch-schnittswert","Bestands-wert","Datum       5","Zugang/ Abgang","Stück-preis","Menge","Bestand","kritische Mengen","Durch-schnittswert","Bestands-wert","Datum        6","Zugang/ Abgang","Stück-preis","Menge","Bestand","kritische Mengen","Durch-schnittswert","Bestands-wert","Datum       7","Zugang/ Abgang","Stück-preis","Menge","Bestand","kritische Mengen","Durch-schnittswert","Bestands-wert","Datum        8","Zugang/ Abgang","Stück-preis","Menge","Bestand","kritische Mengen","Durch-schnittswert","Bestands-wert"]
[]
[5011,"Tropic Partykleid, schwarz",34,50,25,10,40,80,"2006-01-12","Abgang",null,20,{"$f":"IF(J7=\"\",0,IF(J7=\"Zugang\",G7+L7,G7-L7))","v":20},{"$f":"IF(J7=\"\",\"\",IF(M7>=$D7,\"HöB\",IF(M7<=$F7,\"MiB\",IF(M7<=$E7,\"MeB\",\"\"))))","v":"MeB"},null,{"$f":"IF(J7=\"\",\"\",M7*$H7)","v":1600},"2006-02-14","Zugang",null,30,{"$f":"IF(R7=\"\",0,IF(R7=\"Zugang\",M7+T7,M7-T7))","v":50},{"$f":"IF(R7=\"\",\"\",IF(U7>=$D7,\"HöB\",IF(U7<=$F7,\"MiB\",IF(U7<=$E7,\"MeB\",\"\"))))","v":"HöB"},null,{"$f":"IF(R7=\"\",\"\",U7*$H7)","v":4000},null,"Abgang",null,null,{"$f":"IF(Z7=\"\",0,IF(Z7=\"Zugang\",U7+AB7,U7-AB7))","v":50},{"$f":"IF(Z7=\"\",\"\",IF(AC7>=$D7,\"HöB\",IF(AC7<=$F7,\"MiB\",IF(AC7<=$E7,\"MeB\",\"\"))))","v":"HöB"},null,{"$f":"IF(Z7=\"\",\"\",AC7*$H7)","v":4000},null,null,null,null,{"$f":"IF(AH7=\"\",0,IF(AH7=\"Zugang\",AC7+AJ7,AC7-AJ7))","v":0},{"$f":"IF(AH7=\"\",\"\",IF(AK7>=$D7,\"HöB\",IF(AK7<=$F7,\"MiB\",IF(AK7<=$E7,\"MeB\",\"\"))))","v":""},null,{"$f":"IF(AH7=\"\",\"\",AK7*$H7)","v":""},null,null,null,null,{"$f":"IF(AP7=\"\",0,IF(AP7=\"Zugang\",AK7+AR7,AK7-AR7))","v":0},{"$f":"IF(AP7=\"\",\"\",IF(AS7>=$D7,\"HöB\",IF(AS7<=$F7,\"MiB\",IF(AS7<=$E7,\"MeB\",\"\"))))","v":""},null,{"$f":"IF(AP7=\"\",\"\",AS7*$H7)","v":""},null,null,null,null,{"$f":"IF(AX7=\"\",0,IF(AX7=\"Zugang\",AS7+AZ7,AS7-AZ7))","v":0},{"$f":"IF(AX7=\"\",\"\",IF(BA7>=$D7,\"HöB\",IF(BA7<=$F7,\"MiB\",IF(BA7<=$E7,\"MeB\",\"\"))))","v":""},null,{"$f":"IF(AX7=\"\",\"\",BA7*$H7)","v":""},null,null,null,null,{"$f":"IF(BF7=\"\",0,IF(BF7=\"Zugang\",BA7+BH7,BA7-BH7))","v":0},{"$f":"IF(BF7=\"\",\"\",IF(BI7>=$D7,\"HöB\",IF(BI7<=$F7,\"MiB\",IF(BI7<=$E7,\"MeB\",\"\"))))","v":""},null,{"$f":"IF(BF7=\"\",\"\",BI7*$H7)","v":""},null,null,null,null,{"$f":"IF(BN7=\"\",0,IF(BN7=\"Zugang\",BI7+BP7,BI7-BP7))","v":0},{"$f":"IF(BN7=\"\",\"\",IF(BQ7>=$D7,\"HöB\",IF(BQ7<=$F7,\"MiB\",IF(BQ7<=$E7,\"MeB\",\"\"))))","v":""},null,{"$f":"IF(BN7=\"\",\"\",BQ7*$H7)","v":""}]
[5012,"Tropic Partykleid, schwarz",36,100,50,10,75,80,"2006-01-13","Abgang",null,15,{"$f":"IF(J8=\"\",0,IF(J8=\"Zugang\",G8+L8,G8-L8))","v":60},{"$f":"IF(J8=\"\",\"\",IF(M8>=$D8,\"HöB\",IF(M8<=$F8,\"MiB\",IF(M8<=$E8,\"MeB\",\"\"))))","v":""},null,{"$f":"IF(J8=\"\",\"\",M8*$H8)","v":4800},null,null,null,null,{"$f":"IF(R8=\"\",0,IF(R8=\"Zugang\",M8+T8,M8-T8))","v":0},{"$f":"IF(R8=\"\",\"\",IF(U8>=$D8,\"HöB\",IF(U8<=$F8,\"MiB\",IF(U8<=$E8,\"MeB\",\"\"))))","v":""},null,{"$f":"IF(R8=\"\",\"\",U8*$H8)","v":""},null,null,null,null,{"$f":"IF(Z8=\"\",0,IF(Z8=\"Zugang\",U8+AB8,U8-AB8))","v":0},{"$f":"IF(Z8=\"\",\"\",IF(AC8>=$D8,\"HöB\",IF(AC8<=$F8,\"MiB\",IF(AC8<=$E8,\"MeB\",\"\"))))","v":""},null,{"$f":"IF(Z8=\"\",\"\",AC8*$H8)","v":""},null,null,null,null,{"$f":"IF(AH8=\"\",0,IF(AH8=\"Zugang\",AC8+AJ8,AC8-AJ8))","v":0},{"$f":"IF(AH8=\"\",\"\",IF(AK8>=$D8,\"HöB\",IF(AK8<=$F8,\"MiB\",IF(AK8<=$E8,\"MeB\",\"\"))))","v":""},null,{"$f":"IF(AH8=\"\",\"\",AK8*$H8)","v":""},null,null,null,null,{"$f":"IF(AP8=\"\",0,IF(AP8=\"Zugang\",AK8+AR8,AK8-AR8))","v":0},{"$f":"IF(AP8=\"\",\"\",IF(AS8>=$D8,\"HöB\",IF(AS8<=$F8,\"MiB\",IF(AS8<=$E8,\"MeB\",\"\"))))","v":""},null,{"$f":"IF(AP8=\"\",\"\",AS8*$H8)","v":""},null,null,null,null,{"$f":"IF(AX8=\"\",0,IF(AX8=\"Zugang\",AS8+AZ8,AS8-AZ8))","v":0},{"$f":"IF(AX8=\"\",\"\",IF(BA8>=$D8,\"HöB\",IF(BA8<=$F8,\"MiB\",IF(BA8<=$E8,\"MeB\",\"\"))))","v":""},null,{"$f":"IF(AX8=\"\",\"\",BA8*$H8)","v":""},null,null,null,null,{"$f":"IF(BF8=\"\",0,IF(BF8=\"Zugang\",BA8+BH8,BA8-BH8))","v":0},{"$f":"IF(BF8=\"\",\"\",IF(BI8>=$D8,\"HöB\",IF(BI8<=$F8,\"MiB\",IF(BI8<=$E8,\"MeB\",\"\"))))","v":""},null,{"$f":"IF(BF8=\"\",\"\",BI8*$H8)","v":""},null,null,null,null,{"$f":"IF(BN8=\"\",0,IF(BN8=\"Zugang\",BI8+BP8,BI8-BP8))","v":0},{"$f":"IF(BN8=\"\",\"\",IF(BQ8>=$D8,\"HöB\",IF(BQ8<=$F8,\"MiB\",IF(BQ8<=$E8,\"MeB\",\"\"))))","v":""},null,{"$f":"IF(BN8=\"\",\"\",BQ8*$H8)","v":""}]
[5013,"Tropic Partykleid, schwarz",38,100,50,10,100,80,"2006-01-20","Abgang",null,40,{"$f":"IF(J9=\"\",0,IF(J9=\"Zugang\",G9+L9,G9-L9))","v":60},{"$f":"IF(J9=\"\",\"\",IF(M9>=$D9,\"HöB\",IF(M9<=$F9,\"MiB\",IF(M9<=$E9,\"MeB\",\"\"))))","v":""},null,4800,null,"Abgang",null,null,60,{"$f":"IF(R9=\"\",\"\",IF(U9>=$D9,\"HöB\",IF(U9<=$F9,\"MiB\",IF(U9<=$E9,\"MeB\",\"\"))))","v":""},null,4800,null,"Zugang",null,null,60,{"$f":"IF(Z9=\"\",\"\",IF(AC9>=$D9,\"HöB\",IF(AC9<=$F9,\"MiB\",IF(AC9<=$E9,\"MeB\",\"\"))))","v":""},null,4800,null,null,null,null,{"$f":"IF(AH9=\"\",0,IF(AH9=\"Zugang\",AC9+AJ9,AC9-AJ9))","v":0},{"$f":"IF(AH9=\"\",\"\",IF(AK9>=$D9,\"HöB\",IF(AK9<=$F9,\"MiB\",IF(AK9<=$E9,\"MeB\",\"\"))))","v":""},null,"",null,null,null,null,{"$f":"IF(AP9=\"\",0,IF(AP9=\"Zugang\",AK9+AR9,AK9-AR9))","v":0},{"$f":"IF(AP9=\"\",\"\",IF(AS9>=$D9,\"HöB\",IF(AS9<=$F9,\"MiB\",IF(AS9<=$E9,\"MeB\",\"\"))))","v":""},null,"",null,null,null,null,{"$f":"IF(AX9=\"\",0,IF(AX9=\"Zugang\",AS9+AZ9,AS9-AZ9))","v":0},{"$f":"IF(AX9=\"\",\"\",IF(BA9>=$D9,\"HöB\",IF(BA9<=$F9,\"MiB\",IF(BA9<=$E9,\"MeB\",\"\"))))","v":""},null,"",null,null,null,null,{"$f":"IF(BF9=\"\",0,IF(BF9=\"Zugang\",BA9+BH9,BA9-BH9))","v":0},{"$f":"IF(BF9=\"\",\"\",IF(BI9>=$D9,\"HöB\",IF(BI9<=$F9,\"MiB\",IF(BI9<=$E9,\"MeB\",\"\"))))","v":""},null,"",null,null,null,null,{"$f":"IF(BN9=\"\",0,IF(BN9=\"Zugang\",BI9+BP9,BI9-BP9))","v":0},{"$f":"IF(BN9=\"\",\"\",IF(BQ9>=$D9,\"HöB\",IF(BQ9<=$F9,\"MiB\",IF(BQ9<=$E9,\"MeB\",\"\"))))","v":""},null,""]
[5014,"Tropic Partykleid, schwarz",40,100,50,10,60,80,"2006-02-01","Abgang",null,20,40,"MeB",null,3200,null,null,null,null,0,"",null,"",null,null,null,null,0,"",null,"",null,null,null,null,0,"",null,"",null,null,null,null,0,"",null,"",null,null,null,null,0,"",null,"",null,null,null,null,0,"",null,"",null,null,null,null,0,"",null,""]
[5015,"Tropic Partykleid, schwarz",42,50,25,10,20,80,"2006-02-01","Zugang",null,30,50,"HöB",null,4000,null,null,null,null,0,"",null,"",null,null,null,null,0,"",null,"",null,null,null,null,0,"",null,"",null,null,null,null,0,"",null,"",null,null,null,null,0,"",null,"",null,null,null,null,0,"",null,"",null,null,null,null,0,"",null,""]
[5021,"Tropic Partykleid, grün-orange",34,50,25,10,50,80,"2006-03-01","Abgang",null,20,30,"",null,2400,null,null,null,null,0,"",null,"",null,null,null,null,0,"",null,"",null,null,null,null,0,"",null,"",null,null,null,null,0,"",null,"",null,null,null,null,0,"",null,"",null,null,null,null,0,"",null,"",null,null,null,null,0,"",null,""]
[5022,"Tropic Partykleid, grün-orange",36,100,50,10,70,80,"2006-02-03","Abgang",null,20,50,"MeB",null,4000,"2006-02-05","Zugang",null,40,90,"",null,7200,null,null,null,null,0,"",null,"",null,null,null,null,0,"",null,"",null,null,null,null,0,"",null,"",null,null,null,null,0,"",null,"",null,null,null,null,0,"",null,"",null,null,null,null,0,"",null,""]
[5023,"Tropic Partykleid, grün-orange",38,100,50,10,100,80,"2006-02-02","Abgang",null,25,75,"",null,6000,null,null,null,null,{"$f":"IF(R14=\"\",0,IF(R14=\"Zugang\",M14+T14,M14-T14))","v":0},"",null,"",null,null,null,null,0,"",null,"",null,null,null,null,0,"",null,"",null,null,null,null,0,"",null,"",null,null,null,null,0,"",null,"",null,null,null,null,0,"",null,"",null,null,null,null,0,"",null,""]
[5024,"Tropic Partykleid, grün-orange",40,100,50,10,50,80,"2006-02-06","Abgang",null,40,10,"MiB",null,800,"2006-02-08","Zugang",null,50,60,"",null,4800,null,null,null,null,0,"",null,"",null,null,null,null,0,"",null,"",null,null,null,null,0,"",null,"",null,null,null,null,0,"",null,"",null,null,null,null,0,"",null,"",null,null,null,null,0,"",null,""]
[5025,"Tropic Partykleid, grün-orange",42,50,25,10,30,80,"2006-02-23","Abgang",null,10,20,"MeB",null,1600,"2006-02-25","Zugang",null,25,45,"",null,3600,null,null,null,null,0,"",null,"",null,null,null,null,0,"",null,"",null,null,null,null,0,"",null,"",null,null,null,null,0,"",null,"",null,null,null,null,0,"",null,"",null,null,null,null,0,"",null,""]

{"sheet":"Bedarf","index":3,"n_rows":23,"n_cols":13,"rows_kept":23,"cut":false,"hidden":false,"merged":[[0,12,7,13],[11,12,15,13],[0,0,2,5],[23,0,23,1],[23,3,23,4],[23,5,23,6],[22,5,22,6],[21,3,21,9],[7,7,7,9],[5,8,5,9],[48,0,48,10],[47,0,47,10],[24,6,25,6],[24,8,25,8],[24,0,25,0],[24,1,25,4],[24,5,25,5],[26,1,26,4],[30,1,30,4],[31,1,31,4],[21,0,21,2],[22,3,22,4],[22,0,22,1],[23,7,23,8],[22,7,22,9],[27,1,27,4],[28,1,28,4],[46,0,46,10],[34,0,38,10],[40,0,40,5],[44,1,44,4],[29,1,29,4]]}
["Bedarfsmeldung",null,null,null,null,null,"Tropic GmbH",null,null,null,null,null,"Klicken Sie auf den Eingabebutton und geben Sie den Bedarf des Verkaufslagers an. Sie können einen Liefertermin bestimmen und Hinweise auf die Dringlichkeit des Bedarfs geben. (z.B. \"sehr dringend\")"]
[null,null,null,null,null,null,"Rheingrafenstr. 20"]
[null,null,null,null,null,null,"55543 Bad Kreuznach"]
["an"]
["Näherei II",null,null,null,null,null,"Verkaufslager"]
[null,null,null,null,null,null,"Telefon:",null,"0671 2004 361"]
["Fertigprodukt:",null,"Tropic Partykleid"]
[null,null,null,null,null,null,"Datum:",{"$f":"TODAY()","v":"2020-08-31"}]
[]
["Bedarf","Art.-Nr.:","Artikel","Größe","Bestand","kritische Menge","Menge","Preis","Liefertermin","Dringlichkeit"]
[{"$f":"IF(L11=FALSE,\"\",\"X\")","v":""},5011,{"$f":"Artikel!B7","v":"Tropic Partykleid, schwarz"},34,{"$f":"Bestand!H7","v":50},{"$f":"IF(E11>=Bestand!E7,\"Höchstbestand\",IF(Bedarf!E11<=Bestand!G7,\"Mindestbestand\",IF(Bedarf!E11<=Bestand!F7,\"Meldebestand\",\"\")))","v":"Höchstbestand"},null,{"$f":"Bestand!J7","v":80},null,null,null,false]
["",5012,{"$f":"Artikel!B8","v":"Tropic Partykleid, schwarz"},36,{"$f":"Bestand!H8","v":60},{"$f":"IF(E12>=Bestand!E8,\"Höchstbestand\",IF(Bedarf!E12<=Bestand!G8,\"Mindestbestand\",IF(Bedarf!E12<=Bestand!F8,\"Meldebestand\",\"\")))","v":""},null,{"$f":"Bestand!J8","v":80},null,null,null,false,"Wenn Sie die Bedarfsmeldung drucken wollen, wählen Sie in Ihrem Druckermenu nur die Seite 1 aus"]
["",5013,{"$f":"Artikel!B9","v":"Tropic Partykleid, schwarz"},38,{"$f":"Bestand!H9","v":60},{"$f":"IF(E13>=Bestand!E9,\"Höchstbestand\",IF(Bedarf!E13<=Bestand!G9,\"Mindestbestand\",IF(Bedarf!E13<=Bestand!F9,\"Meldebestand\",\"\")))","v":""},null,{"$f":"Bestand!J9","v":80},null,null,null,false]
["",5014,{"$f":"Artikel!B10","v":"Tropic Partykleid, schwarz"},40,{"$f":"Bestand!H10","v":40},{"$f":"IF(E14>=Bestand!E10,\"Höchstbestand\",IF(Bedarf!E14<=Bestand!G10,\"Mindestbestand\",IF(Bedarf!E14<=Bestand!F10,\"Meldebestand\",\"\")))","v":"Meldebestand"},null,{"$f":"Bestand!J10","v":80},null,null,null,false]
["",5015,{"$f":"Artikel!B11","v":"Tropic Partykleid, schwarz"},42,{"$f":"Bestand!H11","v":50},{"$f":"IF(E15>=Bestand!E11,\"Höchstbestand\",IF(Bedarf!E15<=Bestand!G11,\"Mindestbestand\",IF(Bedarf!E15<=Bestand!F11,\"Meldebestand\",\"\")))","v":"Höchstbestand"},null,{"$f":"Bestand!J11","v":80},null,null,null,false]
["",5021,{"$f":"Artikel!B12","v":"Tropic Partykleid, grün-orange"},34,{"$f":"Bestand!H12","v":30},{"$f":"IF(E16>=Bestand!E12,\"Höchstbestand\",IF(Bedarf!E16<=Bestand!G12,\"Mindestbestand\",IF(Bedarf!E16<=Bestand!F12,\"Meldebestand\",\"\")))","v":""},null,{"$f":"Bestand!J12","v":80},null,null,null,false]
["",5022,{"$f":"Artikel!B13","v":"Tropic Partykleid, grün-orange"},36,{"$f":"Bestand!H13","v":90},{"$f":"IF(E17>=Bestand!E13,\"Höchstbestand\",IF(Bedarf!E17<=Bestand!G13,\"Mindestbestand\",IF(Bedarf!E17<=Bestand!F13,\"Meldebestand\",\"\")))","v":""},null,{"$f":"Bestand!J13","v":80},null,null,null,false]
["",5023,{"$f":"Artikel!B14","v":"Tropic Partykleid, grün-orange"},38,{"$f":"Bestand!H14","v":75},{"$f":"IF(E18>=Bestand!E14,\"Höchstbestand\",IF(Bedarf!E18<=Bestand!G14,\"Mindestbestand\",IF(Bedarf!E18<=Bestand!F14,\"Meldebestand\",\"\")))","v":""},null,{"$f":"Bestand!J14","v":80},null,null,null,false]
["",5024,{"$f":"Artikel!B15","v":"Tropic Partykleid, grün-orange"},40,{"$f":"Bestand!H15","v":60},{"$f":"IF(E19>=Bestand!E15,\"Höchstbestand\",IF(Bedarf!E19<=Bestand!G15,\"Mindestbestand\",IF(Bedarf!E19<=Bestand!F15,\"Meldebestand\",\"\")))","v":""},null,{"$f":"Bestand!J15","v":80},null,null,null,false]
["",5025,{"$f":"Artikel!B16","v":"Tropic Partykleid, grün-orange"},42,{"$f":"Bestand!H16","v":45},{"$f":"IF(E20>=Bestand!E16,\"Höchstbestand\",IF(Bedarf!E20<=Bestand!G16,\"Mindestbestand\",IF(Bedarf!E20<=Bestand!F16,\"Meldebestand\",\"\")))","v":""},null,{"$f":"Bestand!J16","v":80},null,null,null,false]
[]
["Verkaufslager",null,null,"Näherei II"]
["Name",null,"Unterschrift","Datum",null,"Unterschrift",null,"Bearbeitungsvermerk"]

{"sheet":"Auftrag","index":4,"n_rows":53,"n_cols":10,"rows_kept":53,"cut":false,"hidden":false,"merged":[[29,3,29,6],[30,3,30,6],[31,3,31,6],[32,3,32,6],[15,9,15,10],[16,9,16,10],[17,9,17,10],[12,3,12,6],[0,0,0,7],[2,0,2,7],[6,3,6,6],[7,3,7,6],[8,3,8,6],[9,3,9,6],[10,3,10,6],[11,3,11,6]]}
["Verkaufslager"]
[]
["Arbeitsauftrag 1"]
[]
[null,"A. Erfassen Sie mit dem aktuellen Datum die folgenden Lagerbewebgungen:"]
[]
["Nr.","Datum","Artikel-Nr.:","Vorgang",null,null,null,"Menge"]
["1.",{"$f":"TODAY()","v":"2020-08-31"},5011,"Abholung von Kleidern durch die Boutique Simone Sommer",null,null,null,5]
["2.","2020-08-31",5013,"Auslieferung einer Bestellung an die Kick Moden GmbH",null,null,null,25]
["3.","2020-08-31",5021,"Lieferung von der Näherei II",null,null,null,20]
["4.","2020-08-31",5022,"Versand von Kleidern an die Black & Blue Jeans GmbH",null,null,null,30]
["5.","2020-08-31",5022,"Versand an die Fa. Cassity Ltd., London",null,null,null,20]
["6.","2020-08-31",5025,"Einlagerung von Kleidern, grün-orange, Größe 34",null,null,null,5]
[]
[null,"B. Schreiben Sie eine Bedarfsmeldung."]
[null,null,null,null,null,null,null,null,null,"Wählen Sie zum Druck des"]
[null,"Durch die Auslieferung von fertigen Erzeugnissen an die Kunden der Tropic GmbH werden die Lager-",null,null,null,null,null,null,null,"Arbeitsauftrages nur die"]
["7.","bestände aufgebraucht. Es muss aber gewährleistet werden, dass die Kunden jederzeit beliefert werden",null,null,null,null,null,null,null,"Seite 1 aus."]
[null,"können. Dazu sind bei Erreichen der Meldebestände die entsprechenden Bedarfsmeldungen an die"]
[null,"Produktionsabteilungen zu schreiben."]
[null,"Schauen Sie sich die derzeitigen Lagerbestände (nach Erledigung der Aufträge 1. - 6.) an und schreiben"]
[null,"Sie die entsprechenden Bedarfsmeldungen, wenn Meldebestände von einzelnen Produkten erreicht sind."]
[null,"Bei jeder Bedarfsmeldung soll der Höchstbestand wieder erreicht werden."]
[]
[null,"C. Erfassen Sie mit dem angegebenen Datum die Lieferungen aufgrund der"]
[null,"Bedarfsmeldungen aus Aufgabe B."]
[]
[null,"Wenn Sie die Lagerbewegungen aus Aufgabe A. richtig erfasst haben und die Bedarfsmeldung"]
[null,"geschrieben haben liefert die Näherei II die folgenden Artikel:"]
["Nr.","Datum","Artikel-Nr.:","Vorgang",null,null,null,"Menge"]
["8.",{"$f":"TODAY()+5","v":"2020-09-05"},5013,"Tropic Partykleid schwarz, Größe 38",null,null,null,65]
["9.",{"$f":"TODAY()+5","v":"2020-09-05"},5014,"Tropic Partykleid schwarz, Größe 40",null,null,null,60]
["10.",{"$f":"TODAY()+5","v":"2020-09-05"},5022,"Tropic Partykleid grün-orange, Größe 36",null,null,null,60]
[]
[null,"D. Ändern Sie die kritischen Bestände."]
[]
["11.","Bei dem Artikel mit der Nummer 5015 wird in Zukunft von einem durchschnittlichen Tagesabsatz"]
[null,"von 5 Stück ausgegangen. Produktion und Lieferung aus der Näherei dauern jeweils 5 Tage. "]
[null,"Es soll weiterhin ein Mindestbestand von 10 Stück am Lager sein. Berechnen Sie den neuen"]
[null,"Meldebestand und nehmen Sie die Änderung in der Lagerkartei vor."]
["12.","Der Mindestbestand des Tropic Partykleides grün-orange, Größe 38, soll bei einem durchschnittlichen"]
[null,"Tagesverkauf von 20 Stück für 3 Tage ausreichend sein."]
["13.","Der Höchstbestand des Artikel mit der Nummer 5025 soll bei einem durchschnittlichen Tagesabsatz"]
[null,"von 5 Stück und einem Mindestbestand von 15 Stück den Lagerbestand für 10 Tage sichern."]
[]
[null,"E. Erfassen Sie mit dem angegebenen Datum weitere Lagerbewegungen."]
[]
["14.","Erfassen Sie je 5 Zu- und Abgänge. Achten Sie auf die kritischen Bestände und veranlassen Sie"]
[null,"die notwendigen Maßnahmen."]
[]
[null,"F. Beurteilen Sie Lagerkennziffern der verschiedenen Artikel."]
[]
["15.","Erhöhen Sie den Kalkulationszinssatz auf 4% und beurteilen Sie Lagerkennziffern in der Bestandstabelle."]